[Event "Titled Tuesday Blitz August 16 Late 2022"]
[White "Kevlishvili, Robby"]
[Black "Vlassov, Nikolai"]
[WhiteFideId "1040634"]
[BlackFideId "4103360"]
[WhiteElo "2585"]
[BlackElo "2324"]
[Result "0-1"]
[Round "03"]
[TimeControl "180+1"]
[Date "2022.08.16"]
[WhiteClock "0:00:09"]
[BlackClock "0:00:22"]

1. e4 {[%clk 0:03:00]}  c5 {[%clk 0:02:59]} 2. Nf3 {[%clk 0:03:01]}  d6 {[%clk 0:02:58]} 3. d4 {[%clk 0:03:01]}  cxd4 {[%clk 0:02:59]} 4. Nxd4 {[%clk 0:03:02]}  Nf6 {[%clk 0:02:59]} 5. Nc3 {[%clk 0:03:03]}  g6 {[%clk 0:03:00]} 6. Be3 {[%clk 0:03:03]}  a6 {[%clk 0:03:00]} 7. f3 {[%clk 0:03:01]}  Nbd7 {[%clk 0:03:00]} 8. Qd2 {[%clk 0:03:02]}  Qc7 {[%clk 0:03:00]} 9. Be2 {[%clk 0:02:58]}  b5 {[%clk 0:02:53]} 10. O-O {[%clk 0:02:58]}  Bg7 {[%clk 0:02:52]} 11. a4 {[%clk 0:02:58]}  b4 {[%clk 0:02:52]} 12. Na2 {[%clk 0:02:59]}  a5 {[%clk 0:02:52]} 13. c3 {[%clk 0:02:59]}  bxc3 {[%clk 0:02:51]} 14. Nxc3 {[%clk 0:03:00]}  O-O {[%clk 0:02:50]} 15. Rfc1 {[%clk 0:03:01]}  Qb7 {[%clk 0:02:35]} 16. Ncb5 {[%clk 0:02:59]}  Nc5 {[%clk 0:02:32]} 17. e5 {[%clk 0:02:38]}  dxe5 {[%clk 0:02:25]} 18. Rxc5 {[%clk 0:02:38]}  exd4 {[%clk 0:02:25]} 19. Bxd4 {[%clk 0:02:30]}  Rd8 {[%clk 0:02:19]} 20. Bc4 {[%clk 0:02:21]}  e6 {[%clk 0:01:42]} 21. Qc3 {[%clk 0:01:51]}  Nd5 {[%clk 0:01:32]} 22. Bxd5 {[%clk 0:01:50]}  Bxd4+ {[%clk 0:01:29]} 23. Qxd4 {[%clk 0:01:47]}  Rxd5 {[%clk 0:01:28]} 24. Rxd5 {[%clk 0:01:46]}  Qxd5 {[%clk 0:01:29]} 25. Qxd5 {[%clk 0:01:42]}  exd5 {[%clk 0:01:29]} 26. Rc1 {[%clk 0:01:39]}  Be6 {[%clk 0:01:28]} 27. Rc7 {[%clk 0:01:35]}  Kg7 {[%clk 0:01:22]} 28. Kf2 {[%clk 0:01:35]}  Kf6 {[%clk 0:01:22]} 29. Ke3 {[%clk 0:01:36]}  h5 {[%clk 0:01:04]} 30. Kd4 {[%clk 0:01:36]}  h4 {[%clk 0:01:03]} 31. Ra7 {[%clk 0:00:59]}  Rc8 {[%clk 0:01:03]} 32. Rc7 {[%clk 0:00:48]}  Rh8 {[%clk 0:00:56]} 33. b3 {[%clk 0:00:44]}  g5 {[%clk 0:00:53]} 34. Ke3 {[%clk 0:00:28]}  Ke5 {[%clk 0:00:49]} 35. Nd4 {[%clk 0:00:26]}  Kd6 {[%clk 0:00:40]} 36. Ra7 {[%clk 0:00:24]}  Rc8 {[%clk 0:00:38]} 37. Kd3 {[%clk 0:00:20]}  Rc1 {[%clk 0:00:37]} 38. Rxa5 {[%clk 0:00:19]}  Rg1 {[%clk 0:00:36]} 39. Ra6+ {[%clk 0:00:18]}  Ke5 {[%clk 0:00:32]} 40. a5 {[%clk 0:00:18]}  Rxg2 {[%clk 0:00:32]} 41. Rc6 {[%clk 0:00:15]}  Rxh2 {[%clk 0:00:31]} 42. a6 {[%clk 0:00:14]}  Ra2 {[%clk 0:00:31]} 43. b4 {[%clk 0:00:14]}  h3 {[%clk 0:00:31]} 44. b5 {[%clk 0:00:15]}  h2 {[%clk 0:00:31]} 45. Rc1 {[%clk 0:00:15]}  Ra3+ {[%clk 0:00:30]} 46. Ke2 {[%clk 0:00:10]}  Kxd4 {[%clk 0:00:30]} 47. Kf2 {[%clk 0:00:10]}  Ra5 {[%clk 0:00:24]} 48. Rb1 {[%clk 0:00:09]}  Rxb5 {[%clk 0:00:22]} 0-1


[Site "https://www.chess.com"]

[Event "Titled Tuesday Blitz August 16 Late 2022"]
[White "Krzywda, Andrzej"]
[Black "Atanasov, Anthony"]
[WhiteFideId "1114565"]
[BlackFideId "2623897"]
[WhiteElo "2246"]
[BlackElo "2150"]
[Result "1-0"]
[Round "03"]
[TimeControl "180+1"]
[Date "2022.08.18"]
[WhiteClock "0:00:00"]
[BlackClock "0:00:00"]

1. e4 {[%clk 0:00:00]}  c5 {[%clk 0:00:00]} 2. Nc3 {[%clk 0:00:00]}  Nc6 {[%clk 0:00:00]} 3. Bb5 {[%clk 0:00:00]}  Nd4 {[%clk 0:00:00]} 4. Nf3 {[%clk 0:00:00]}  a6 {[%clk 0:00:00]} 5. Bd3 {[%clk 0:00:00]}  Nc6 {[%clk 0:00:00]} 6. O-O {[%clk 0:00:00]}  e6 {[%clk 0:00:00]} 7. b3 {[%clk 0:00:00]}  g5 {[%clk 0:00:00]} 8. Bb2 {[%clk 0:00:00]}  b6 {[%clk 0:00:00]} 9. Re1 {[%clk 0:00:00]}  Bg7 {[%clk 0:00:00]} 10. h3 {[%clk 0:00:00]}  Bb7 {[%clk 0:00:00]} 11. e5 {[%clk 0:00:00]}  d5 {[%clk 0:00:00]} 12. exd6 {[%clk 0:00:00]}  h6 {[%clk 0:00:00]} 13. Qe2 {[%clk 0:00:00]}  Nf6 {[%clk 0:00:00]} 14. Ne4 {[%clk 0:00:00]}  O-O {[%clk 0:00:00]} 15. Nxf6+ {[%clk 0:00:00]}  Bxf6 {[%clk 0:00:00]} 16. Qe4 {[%clk 0:00:00]}  Re8 {[%clk 0:00:00]} 17. Qh7+ {[%clk 0:00:00]}  Kf8 {[%clk 0:00:00]} 18. Qxh6+ {[%clk 0:00:00]}  Kg8 {[%clk 0:00:00]} 19. Bxf6 {[%clk 0:00:00]} 1-0


[Site "https://www.chess.com"]

[Event "Titled Tuesday Blitz August 16 Late 2022"]
[White "Leenhouts, Koen"]
[Black "Alexikov, Alexander"]
[WhiteFideId "1008439"]
[BlackFideId "14103958"]
[WhiteElo "2409"]
[BlackElo "2253"]
[Result "1-0"]
[Round "03"]
[TimeControl "180+1"]
[Date "2022.08.18"]
[WhiteClock "0:00:00"]
[BlackClock "0:00:00"]

1. e4 {[%clk 0:00:00]}  c5 {[%clk 0:00:00]} 2. Nf3 {[%clk 0:00:00]}  d6 {[%clk 0:00:00]} 3. d4 {[%clk 0:00:00]}  cxd4 {[%clk 0:00:00]} 4. Qxd4 {[%clk 0:00:00]}  Nf6 {[%clk 0:00:00]} 5. Be2 {[%clk 0:00:00]}  Nc6 {[%clk 0:00:00]} 6. Qe3 {[%clk 0:00:00]}  g6 {[%clk 0:00:00]} 7. h3 {[%clk 0:00:00]}  Bg7 {[%clk 0:00:00]} 8. O-O {[%clk 0:00:00]}  O-O {[%clk 0:00:00]} 9. Rd1 {[%clk 0:00:00]}  Qc7 {[%clk 0:00:00]} 10. Nc3 {[%clk 0:00:00]}  Be6 {[%clk 0:00:00]} 11. b3 {[%clk 0:00:00]}  a6 {[%clk 0:00:00]} 12. Bb2 {[%clk 0:00:00]}  Rac8 {[%clk 0:00:00]} 13. Rac1 {[%clk 0:00:00]}  Rfe8 {[%clk 0:00:00]} 14. Ng5 {[%clk 0:00:00]}  Bd7 {[%clk 0:00:00]} 15. f4 {[%clk 0:00:00]}  e6 {[%clk 0:00:00]} 16. Kh1 {[%clk 0:00:00]}  Red8 {[%clk 0:00:00]} 17. Na4 {[%clk 0:00:00]}  Rb8 {[%clk 0:00:00]} 18. c4 {[%clk 0:00:00]}  Be8 {[%clk 0:00:00]} 19. Bg4 {[%clk 0:00:00]}  b5 {[%clk 0:00:00]} 20. cxb5 {[%clk 0:00:00]}  axb5 {[%clk 0:00:00]} 21. Nc3 {[%clk 0:00:00]}  Nxg4 {[%clk 0:00:00]} 22. hxg4 {[%clk 0:00:00]}  Qa7 {[%clk 0:00:00]} 23. Qe2 {[%clk 0:00:00]}  Nd4 {[%clk 0:00:00]} 24. Qf2 {[%clk 0:00:00]}  Qb7 {[%clk 0:00:00]} 25. Nf3 {[%clk 0:00:00]}  Nxf3 {[%clk 0:00:00]} 26. gxf3 {[%clk 0:00:00]}  b4 {[%clk 0:00:00]} 27. Na4 {[%clk 0:00:00]}  Bxa4 {[%clk 0:00:00]} 28. Bxg7 {[%clk 0:00:00]}  Kxg7 {[%clk 0:00:00]} 29. bxa4 {[%clk 0:00:00]}  Qa6 {[%clk 0:00:00]} 30. Rc7 {[%clk 0:00:00]}  Rb7 {[%clk 0:00:00]} 31. Rdc1 {[%clk 0:00:00]}  Rdb8 {[%clk 0:00:00]} 32. Qd4+ {[%clk 0:00:00]}  Kg8 {[%clk 0:00:00]} 33. Rc8+ {[%clk 0:00:00]} 1-0


[Site "https://www.chess.com"]

[Event "Titled Tuesday Blitz August 16 Late 2022"]
[White "Levine, David"]
[Black "Sadovsky, Artem"]
[WhiteFideId "2011611"]
[BlackFideId "4155840"]
[WhiteElo "2068"]
[BlackElo "2312"]
[Result "0-1"]
[Round "03"]
[TimeControl "180+1"]
[Date "2022.08.18"]
[WhiteClock "0:00:00"]
[BlackClock "0:00:00"]

1. d4 {[%clk 0:00:00]}  g6 {[%clk 0:00:00]} 2. c4 {[%clk 0:00:00]}  Bg7 {[%clk 0:00:00]} 3. g3 {[%clk 0:00:00]}  d6 {[%clk 0:00:00]} 4. Bg2 {[%clk 0:00:00]}  e5 {[%clk 0:00:00]} 5. dxe5 {[%clk 0:00:00]}  dxe5 {[%clk 0:00:00]} 6. Qxd8+ {[%clk 0:00:00]}  Kxd8 {[%clk 0:00:00]} 7. Nc3 {[%clk 0:00:00]}  f6 {[%clk 0:00:00]} 8. h4 {[%clk 0:00:00]}  Nh6 {[%clk 0:00:00]} 9. h5 {[%clk 0:00:00]}  g5 {[%clk 0:00:00]} 10. Bd2 {[%clk 0:00:00]}  c6 {[%clk 0:00:00]} 11. O-O-O {[%clk 0:00:00]}  Kc7 {[%clk 0:00:00]} 12. e3 {[%clk 0:00:00]}  Be6 {[%clk 0:00:00]} 13. b3 {[%clk 0:00:00]}  Ng4 {[%clk 0:00:00]} 14. Nh3 {[%clk 0:00:00]}  Nd7 {[%clk 0:00:00]} 15. f3 {[%clk 0:00:00]}  Nh6 {[%clk 0:00:00]} 16. g4 {[%clk 0:00:00]}  Nc5 {[%clk 0:00:00]} 17. e4 {[%clk 0:00:00]}  Rhd8 {[%clk 0:00:00]} 18. Bf1 {[%clk 0:00:00]}  Bf8 {[%clk 0:00:00]} 19. Be2 {[%clk 0:00:00]}  Nf7 {[%clk 0:00:00]} 20. Be3 {[%clk 0:00:00]}  a5 {[%clk 0:00:00]} 21. Rxd8 {[%clk 0:00:00]}  Rxd8 {[%clk 0:00:00]} 22. Rd1 {[%clk 0:00:00]}  Rxd1+ {[%clk 0:00:00]} 23. Kxd1 {[%clk 0:00:00]}  Nd7 {[%clk 0:00:00]} 24. Kc2 {[%clk 0:00:00]}  Bc5 {[%clk 0:00:00]} 25. Bd2 {[%clk 0:00:00]}  Bd4 {[%clk 0:00:00]} 26. Bd3 {[%clk 0:00:00]}  Nc5 {[%clk 0:00:00]} 27. Ne2 {[%clk 0:00:00]}  b6 {[%clk 0:00:00]} 28. Nxd4 {[%clk 0:00:00]}  exd4 {[%clk 0:00:00]} 29. Nf2 {[%clk 0:00:00]}  Ne5 {[%clk 0:00:00]} 30. f4 {[%clk 0:00:00]}  Nxg4 {[%clk 0:00:00]} 31. Nxg4 {[%clk 0:00:00]}  Bxg4 {[%clk 0:00:00]} 32. fxg5 {[%clk 0:00:00]}  fxg5 {[%clk 0:00:00]} 33. Bxg5 {[%clk 0:00:00]}  Bxh5 {[%clk 0:00:00]} 34. Bf6 {[%clk 0:00:00]}  Bg6 {[%clk 0:00:00]} 35. Bxd4 {[%clk 0:00:00]}  Bxe4 {[%clk 0:00:00]} 36. Be5+ {[%clk 0:00:00]}  Kd7 {[%clk 0:00:00]} 37. Bxe4 {[%clk 0:00:00]}  Nxe4 {[%clk 0:00:00]} 38. Kd3 {[%clk 0:00:00]}  Nc5+ {[%clk 0:00:00]} 39. Ke3 {[%clk 0:00:00]}  Ke6 {[%clk 0:00:00]} 40. Bc7 {[%clk 0:00:00]}  Nd7 {[%clk 0:00:00]} 41. Ke4 {[%clk 0:00:00]}  a4 {[%clk 0:00:00]} 42. Kf4 {[%clk 0:00:00]}  axb3 {[%clk 0:00:00]} 43. axb3 {[%clk 0:00:00]}  b5 {[%clk 0:00:00]} 44. Kg5 {[%clk 0:00:00]}  Nc5 {[%clk 0:00:00]} 45. cxb5 {[%clk 0:00:00]}  cxb5 {[%clk 0:00:00]} 46. b4 {[%clk 0:00:00]}  Na6 {[%clk 0:00:00]} 47. Ba5 {[%clk 0:00:00]}  Kf7 {[%clk 0:00:00]} 48. Kh6 {[%clk 0:00:00]}  Kg8 {[%clk 0:00:00]} 49. Kh5 {[%clk 0:00:00]}  Kg7 {[%clk 0:00:00]} 50. Kg5 {[%clk 0:00:00]}  h6+ {[%clk 0:00:00]} 51. Kh5 {[%clk 0:00:00]}  Kh7 {[%clk 0:00:00]} 52. Kh4 {[%clk 0:00:00]}  Kg6 {[%clk 0:00:00]} 53. Kg4 {[%clk 0:00:00]}  h5+ {[%clk 0:00:00]} 54. Kh4 {[%clk 0:00:00]}  Kh6 {[%clk 0:00:00]} 55. Kh3 {[%clk 0:00:00]}  Kg5 {[%clk 0:00:00]} 56. Bd8+ {[%clk 0:00:00]}  Kg6 {[%clk 0:00:00]} 57. Be7 {[%clk 0:00:00]}  Nc7 {[%clk 0:00:00]} 0-1


[Site "https://www.chess.com"]

[Event "Titled Tuesday Blitz August 16 Late 2022"]
[White "Liu, Casper"]
[Black "Sokolovsky, Yahli"]
[WhiteFideId "1454153"]
[BlackFideId "2820242"]
[WhiteElo "2025"]
[BlackElo "1867"]
[Result "0-1"]
[Round "03"]
[TimeControl "180+1"]
[Date "2022.08.18"]
[WhiteClock "0:00:00"]
[BlackClock "0:00:00"]

1. d4 {[%clk 0:00:00]}  d5 {[%clk 0:00:00]} 2. c4 {[%clk 0:00:00]}  e6 {[%clk 0:00:00]} 3. Nc3 {[%clk 0:00:00]}  c6 {[%clk 0:00:00]} 4. e4 {[%clk 0:00:00]}  dxe4 {[%clk 0:00:00]} 5. Nxe4 {[%clk 0:00:00]}  Nf6 {[%clk 0:00:00]} 6. Nxf6+ {[%clk 0:00:00]}  Qxf6 {[%clk 0:00:00]} 7. Nf3 {[%clk 0:00:00]}  Nd7 {[%clk 0:00:00]} 8. Bd3 {[%clk 0:00:00]}  Bb4+ {[%clk 0:00:00]} 9. Bd2 {[%clk 0:00:00]}  Bxd2+ {[%clk 0:00:00]} 10. Qxd2 {[%clk 0:00:00]}  O-O {[%clk 0:00:00]} 11. O-O {[%clk 0:00:00]}  e5 {[%clk 0:00:00]} 12. Ng5 {[%clk 0:00:00]}  g6 {[%clk 0:00:00]} 13. Ne4 {[%clk 0:00:00]}  Qe7 {[%clk 0:00:00]} 14. d5 {[%clk 0:00:00]}  f5 {[%clk 0:00:00]} 15. Nc3 {[%clk 0:00:00]}  e4 {[%clk 0:00:00]} 16. Bc2 {[%clk 0:00:00]}  Ne5 {[%clk 0:00:00]} 17. Bb3 {[%clk 0:00:00]}  Kg7 {[%clk 0:00:00]} 18. Rad1 {[%clk 0:00:00]}  Bd7 {[%clk 0:00:00]} 19. d6 {[%clk 0:00:00]}  Qf6 {[%clk 0:00:00]} 20. c5 {[%clk 0:00:00]}  Nd3 {[%clk 0:00:00]} 21. Qe3 {[%clk 0:00:00]}  Nxb2 {[%clk 0:00:00]} 22. Rb1 {[%clk 0:00:00]}  Nd3 {[%clk 0:00:00]} 23. Bc4 {[%clk 0:00:00]}  Qxc3 {[%clk 0:00:00]} 24. Rfc1 {[%clk 0:00:00]}  Qf6 {[%clk 0:00:00]} 25. Rxb7 {[%clk 0:00:00]}  Rad8 {[%clk 0:00:00]} 26. Rcb1 {[%clk 0:00:00]}  Kh8 {[%clk 0:00:00]} 27. Rxa7 {[%clk 0:00:00]}  Be6 {[%clk 0:00:00]} 28. Rbb7 {[%clk 0:00:00]}  Bxc4 {[%clk 0:00:00]} 29. Rxh7+ {[%clk 0:00:00]}  Kg8 {[%clk 0:00:00]} 30. Qh6 {[%clk 0:00:00]}  Qa1+ {[%clk 0:00:00]} 0-1


[Site "https://www.chess.com"]

[Event "Titled Tuesday Blitz August 16 Late 2022"]
[White "Lopez Perdomo, Juan David"]
[Black "Voege, Tobias"]
[WhiteFideId "4405137"]
[BlackFideId "1270513"]
[WhiteElo "1965"]
[BlackElo "2360"]
[Result "0-1"]
[Round "03"]
[TimeControl "180+1"]
[Date "2022.08.18"]
[WhiteClock "0:00:00"]
[BlackClock "0:00:00"]

1. e4 {[%clk 0:00:00]}  e5 {[%clk 0:00:00]} 2. Nf3 {[%clk 0:00:00]}  Nc6 {[%clk 0:00:00]} 3. Bb5 {[%clk 0:00:00]}  a6 {[%clk 0:00:00]} 4. Ba4 {[%clk 0:00:00]}  b5 {[%clk 0:00:00]} 5. Bb3 {[%clk 0:00:00]}  Nf6 {[%clk 0:00:00]} 6. d3 {[%clk 0:00:00]}  Bc5 {[%clk 0:00:00]} 7. h3 {[%clk 0:00:00]}  O-O {[%clk 0:00:00]} 8. c3 {[%clk 0:00:00]}  d5 {[%clk 0:00:00]} 9. Qe2 {[%clk 0:00:00]}  Be6 {[%clk 0:00:00]} 10. Bg5 {[%clk 0:00:00]}  dxe4 {[%clk 0:00:00]} 11. dxe4 {[%clk 0:00:00]}  Bxb3 {[%clk 0:00:00]} 12. axb3 {[%clk 0:00:00]}  h6 {[%clk 0:00:00]} 13. Bxf6 {[%clk 0:00:00]}  Qxf6 {[%clk 0:00:00]} 14. O-O {[%clk 0:00:00]}  Bb6 {[%clk 0:00:00]} 15. Nbd2 {[%clk 0:00:00]}  Nd8 {[%clk 0:00:00]} 16. c4 {[%clk 0:00:00]}  c6 {[%clk 0:00:00]} 17. Rfc1 {[%clk 0:00:00]}  Ne6 {[%clk 0:00:00]} 18. cxb5 {[%clk 0:00:00]}  cxb5 {[%clk 0:00:00]} 19. Rc6 {[%clk 0:00:00]}  Nf4 {[%clk 0:00:00]} 20. Rxf6 {[%clk 0:00:00]}  Nxe2+ {[%clk 0:00:00]} 21. Kf1 {[%clk 0:00:00]}  gxf6 {[%clk 0:00:00]} 22. Kxe2 {[%clk 0:00:00]}  Rfd8 {[%clk 0:00:00]} 23. Nh4 {[%clk 0:00:00]}  Bxf2 {[%clk 0:00:00]} 24. Nf5 {[%clk 0:00:00]}  Bd4 {[%clk 0:00:00]} 25. Nxh6+ {[%clk 0:00:00]}  Kh7 {[%clk 0:00:00]} 26. Ng4 {[%clk 0:00:00]}  Rd6 {[%clk 0:00:00]} 27. Rf1 {[%clk 0:00:00]}  Kg7 {[%clk 0:00:00]} 28. Nf3 {[%clk 0:00:00]}  Rc8 {[%clk 0:00:00]} 29. Nh4 {[%clk 0:00:00]}  Rc2+ {[%clk 0:00:00]} 30. Kd1 {[%clk 0:00:00]}  Rdc6 {[%clk 0:00:00]} 31. Nf5+ {[%clk 0:00:00]}  Kf8 {[%clk 0:00:00]} 32. Rf3 {[%clk 0:00:00]}  Rc1+ {[%clk 0:00:00]} 33. Ke2 {[%clk 0:00:00]}  R6c2+ {[%clk 0:00:00]} 34. Kd3 {[%clk 0:00:00]}  Rxb2 {[%clk 0:00:00]} 35. Nxd4 {[%clk 0:00:00]}  exd4 {[%clk 0:00:00]} 36. Rxf6 {[%clk 0:00:00]}  Rd1# {[%clk 0:00:00]} 0-1


[Site "https://www.chess.com"]

[Event "Titled Tuesday Blitz August 16 Late 2022"]
[White "Lorenzo De La Riva, Lazaro"]
[Black "Melkumyan, Hrant"]
[WhiteFideId "2268809"]
[BlackFideId "13302485"]
[WhiteElo "2325"]
[BlackElo "2604"]
[Result "1-0"]
[Round "03"]
[TimeControl "180+1"]
[Date "2022.08.16"]
[WhiteClock "0:00:07"]
[BlackClock "0:00:03"]

1. d4 {[%clk 0:02:56]}  Nf6 {[%clk 0:02:58]} 2. Bg5 {[%clk 0:02:53]}  d5 {[%clk 0:02:50]} 3. Nf3 {[%clk 0:02:49]}  Bf5 {[%clk 0:02:49]} 4. Nbd2 {[%clk 0:02:42]}  Nbd7 {[%clk 0:02:49]} 5. e3 {[%clk 0:02:42]}  e6 {[%clk 0:02:46]} 6. c3 {[%clk 0:02:41]}  h6 {[%clk 0:02:42]} 7. Bh4 {[%clk 0:02:39]}  c5 {[%clk 0:02:42]} 8. Be2 {[%clk 0:02:32]}  Bd6 {[%clk 0:02:38]} 9. Bg3 {[%clk 0:02:28]}  Qc7 {[%clk 0:02:34]} 10. O-O {[%clk 0:02:21]}  O-O {[%clk 0:02:27]} 11. Re1 {[%clk 0:02:20]}  Rfe8 {[%clk 0:02:23]} 12. Rc1 {[%clk 0:02:15]}  c4 {[%clk 0:02:15]} 13. Bxd6 {[%clk 0:02:02]}  Qxd6 {[%clk 0:02:15]} 14. Nh4 {[%clk 0:02:02]}  Bh7 {[%clk 0:02:14]} 15. f4 {[%clk 0:02:01]}  b5 {[%clk 0:02:13]} 16. Nhf3 {[%clk 0:01:58]}  b4 {[%clk 0:02:13]} 17. Ne5 {[%clk 0:01:59]}  Reb8 {[%clk 0:02:10]} 18. b3 {[%clk 0:01:44]}  cxb3 {[%clk 0:01:51]} 19. axb3 {[%clk 0:01:36]}  bxc3 {[%clk 0:01:27]} 20. Rxc3 {[%clk 0:01:37]}  Rc8 {[%clk 0:01:28]} 21. Qa1 {[%clk 0:01:34]}  Rxc3 {[%clk 0:01:23]} 22. Qxc3 {[%clk 0:01:35]}  Nb6 {[%clk 0:01:15]} 23. Qc5 {[%clk 0:01:30]}  Qf8 {[%clk 0:00:58]} 24. Qa5 {[%clk 0:01:26]}  Ne4 {[%clk 0:00:52]} 25. Nxe4 {[%clk 0:01:25]}  Bxe4 {[%clk 0:00:53]} 26. Rc1 {[%clk 0:01:24]}  Rc8 {[%clk 0:00:47]} 27. Rc5 {[%clk 0:01:23]}  f6 {[%clk 0:00:41]} 28. Nf3 {[%clk 0:01:18]}  Nd7 {[%clk 0:00:37]} 29. Rxc8 {[%clk 0:01:16]}  Qxc8 {[%clk 0:00:38]} 30. Qxa7 {[%clk 0:01:16]}  Qc1+ {[%clk 0:00:37]} 31. Kf2 {[%clk 0:01:16]}  Nf8 {[%clk 0:00:33]} 32. Qa5 {[%clk 0:01:09]}  Qb2 {[%clk 0:00:33]} 33. Nd2 {[%clk 0:01:06]}  Bf5 {[%clk 0:00:31]} 34. g4 {[%clk 0:00:59]}  Bg6 {[%clk 0:00:27]} 35. f5 {[%clk 0:00:47]}  Bf7 {[%clk 0:00:25]} 36. Ke1 {[%clk 0:00:37]}  exf5 {[%clk 0:00:20]} 37. gxf5 {[%clk 0:00:37]}  Qc2 {[%clk 0:00:21]} 38. Qc5 {[%clk 0:00:34]}  Qxf5 {[%clk 0:00:20]} 39. b4 {[%clk 0:00:32]}  Qg5 {[%clk 0:00:17]} 40. Qc3 {[%clk 0:00:30]}  Qh4+ {[%clk 0:00:17]} 41. Kd1 {[%clk 0:00:30]}  Qxh2 {[%clk 0:00:18]} 42. b5 {[%clk 0:00:30]}  Qd6 {[%clk 0:00:17]} 43. Qc5 {[%clk 0:00:29]}  Qb8 {[%clk 0:00:16]} 44. Qc6 {[%clk 0:00:27]}  h5 {[%clk 0:00:16]} 45. b6 {[%clk 0:00:27]}  Ne6 {[%clk 0:00:15]} 46. Bf3 {[%clk 0:00:17]}  h4 {[%clk 0:00:14]} 47. Bxd5 {[%clk 0:00:16]}  Ng5 {[%clk 0:00:10]} 48. Qc7 {[%clk 0:00:14]}  Qe8 {[%clk 0:00:03]} 49. Bxf7+ {[%clk 0:00:13]}  Nxf7 {[%clk 0:00:03]} 50. b7 {[%clk 0:00:13]}  Qa4+ {[%clk 0:00:04]} 51. Ke1 {[%clk 0:00:11]}  Qa1+ {[%clk 0:00:02]} 52. Kf2 {[%clk 0:00:10]}  Qd1 {[%clk 0:00:02]} 53. Nf3 {[%clk 0:00:07]}  Kh7 {[%clk 0:00:03]} 54. b8=Q {[%clk 0:00:07]} 1-0


[Site "https://www.chess.com"]

[Event "Titled Tuesday Blitz August 16 Late 2022"]
[White "Meduri, Aakaash"]
[Black "Karaev, Seit-Amet"]
[WhiteFideId "2032252"]
[BlackFideId "4169549"]
[WhiteElo "2113"]
[BlackElo "2272"]
[Result "0-1"]
[Round "03"]
[TimeControl "180+1"]
[Date "2022.08.18"]
[WhiteClock "0:00:00"]
[BlackClock "0:00:00"]

1. b3 {[%clk 0:00:00]}  e5 {[%clk 0:00:00]} 2. Bb2 {[%clk 0:00:00]}  d6 {[%clk 0:00:00]} 3. c4 {[%clk 0:00:00]}  f5 {[%clk 0:00:00]} 4. e3 {[%clk 0:00:00]}  Nf6 {[%clk 0:00:00]} 5. d4 {[%clk 0:00:00]}  e4 {[%clk 0:00:00]} 6. Nc3 {[%clk 0:00:00]}  g6 {[%clk 0:00:00]} 7. Be2 {[%clk 0:00:00]}  Bg7 {[%clk 0:00:00]} 8. Nh3 {[%clk 0:00:00]}  O-O {[%clk 0:00:00]} 9. O-O {[%clk 0:00:00]}  c6 {[%clk 0:00:00]} 10. Rc1 {[%clk 0:00:00]}  Na6 {[%clk 0:00:00]} 11. a3 {[%clk 0:00:00]}  Nc7 {[%clk 0:00:00]} 12. f3 {[%clk 0:00:00]}  Re8 {[%clk 0:00:00]} 13. f4 {[%clk 0:00:00]}  h6 {[%clk 0:00:00]} 14. Kh1 {[%clk 0:00:00]}  d5 {[%clk 0:00:00]} 15. Rg1 {[%clk 0:00:00]}  Ng4 {[%clk 0:00:00]} 16. Bxg4 {[%clk 0:00:00]}  fxg4 {[%clk 0:00:00]} 17. Nf2 {[%clk 0:00:00]}  h5 {[%clk 0:00:00]} 18. g3 {[%clk 0:00:00]}  Bf5 {[%clk 0:00:00]} 19. Qe2 {[%clk 0:00:00]}  Bf6 {[%clk 0:00:00]} 20. Kg2 {[%clk 0:00:00]}  Kf7 {[%clk 0:00:00]} 21. Na4 {[%clk 0:00:00]}  b6 {[%clk 0:00:00]} 22. cxd5 {[%clk 0:00:00]}  Nxd5 {[%clk 0:00:00]} 23. Rxc6 {[%clk 0:00:00]}  h4 {[%clk 0:00:00]} 24. Nc3 {[%clk 0:00:00]}  Rh8 {[%clk 0:00:00]} 25. Nxd5 {[%clk 0:00:00]}  Qxd5 {[%clk 0:00:00]} 26. Rc7+ {[%clk 0:00:00]}  Kg8 {[%clk 0:00:00]} 27. Qc4 {[%clk 0:00:00]}  Rd8 {[%clk 0:00:00]} 28. Rc1 {[%clk 0:00:00]}  hxg3 {[%clk 0:00:00]} 29. hxg3 {[%clk 0:00:00]}  Rh7 {[%clk 0:00:00]} 30. Qxd5+ {[%clk 0:00:00]}  Rxd5 {[%clk 0:00:00]} 31. Rxh7 {[%clk 0:00:00]}  Kxh7 {[%clk 0:00:00]} 32. Rc7+ {[%clk 0:00:00]}  Kh6 {[%clk 0:00:00]} 33. Rxa7 {[%clk 0:00:00]}  Rd8 {[%clk 0:00:00]} 34. Rc7 {[%clk 0:00:00]}  b5 {[%clk 0:00:00]} 35. Rc6 {[%clk 0:00:00]}  Kg7 {[%clk 0:00:00]} 36. Nd1 {[%clk 0:00:00]}  Rb8 {[%clk 0:00:00]} 37. b4 {[%clk 0:00:00]}  Rb7 {[%clk 0:00:00]} 38. Nc3 {[%clk 0:00:00]}  Bd7 {[%clk 0:00:00]} 39. Rc5 {[%clk 0:00:00]}  Be7 {[%clk 0:00:00]} 40. Nxe4 {[%clk 0:00:00]}  Bxc5 {[%clk 0:00:00]} 41. Nxc5 {[%clk 0:00:00]}  Ra7 {[%clk 0:00:00]} 42. e4 {[%clk 0:00:00]}  Kf7 {[%clk 0:00:00]} 43. d5 {[%clk 0:00:00]}  Ke7 {[%clk 0:00:00]} 44. e5 {[%clk 0:00:00]}  Bf5 {[%clk 0:00:00]} 45. Kf2 {[%clk 0:00:00]}  Ra8 {[%clk 0:00:00]} 46. d6+ {[%clk 0:00:00]}  Kf7 {[%clk 0:00:00]} 47. Ke3 {[%clk 0:00:00]}  Be6 {[%clk 0:00:00]} 48. Nxe6 {[%clk 0:00:00]}  Kxe6 {[%clk 0:00:00]} 49. Kd4 {[%clk 0:00:00]}  Rc8 {[%clk 0:00:00]} 50. Bc3 {[%clk 0:00:00]}  Rc4+ {[%clk 0:00:00]} 51. Kd3 {[%clk 0:00:00]}  Rc8 {[%clk 0:00:00]} 52. Bd4 {[%clk 0:00:00]}  Ra8 {[%clk 0:00:00]} 53. Bb2 {[%clk 0:00:00]}  Rh8 {[%clk 0:00:00]} 54. Kd4 {[%clk 0:00:00]}  Rh3 {[%clk 0:00:00]} 55. Kc5 {[%clk 0:00:00]}  Rxg3 {[%clk 0:00:00]} 56. Kxb5 {[%clk 0:00:00]}  Rb3 {[%clk 0:00:00]} 57. Bd4 {[%clk 0:00:00]}  Rxa3 {[%clk 0:00:00]} 58. Kc6 {[%clk 0:00:00]}  Rd3 {[%clk 0:00:00]} 59. Bc5 {[%clk 0:00:00]}  g3 {[%clk 0:00:00]} 60. b5 {[%clk 0:00:00]}  g2 {[%clk 0:00:00]} 61. d7 {[%clk 0:00:00]}  Rxd7 {[%clk 0:00:00]} 62. b6 {[%clk 0:00:00]}  Rd5 {[%clk 0:00:00]} 63. Bg1 {[%clk 0:00:00]}  Rd1 {[%clk 0:00:00]} 64. b7 {[%clk 0:00:00]}  Rc1+ {[%clk 0:00:00]} 65. Kb6 {[%clk 0:00:00]}  Rxg1 {[%clk 0:00:00]} 66. Kc7 {[%clk 0:00:00]}  Rc1+ {[%clk 0:00:00]} 0-1


[Site "https://www.chess.com"]